[Event "Titled Tuesday Blitz May 31 Early 2022"]
[White "Bortnyk, Olexandr"]
[Black "Gokerkan, Cem Kaan"]
[WhiteFideId "14120828"]
[BlackFideId "6336760"]
[WhiteElo "2723"]
[BlackElo "2382"]
[Result "1-0"]
[Round "03"]
[TimeControl "180+1"]
[Date "2022.05.31"]
[WhiteClock "0:00:36"]
[BlackClock "0:00:05"]

1. d4 {[%clk 0:03:00]}  Nf6 {[%clk 0:03:00]} 2. Nc3 {[%clk 0:02:58]}  d5 {[%clk 0:03:01]} 3. Bf4 {[%clk 0:02:57]}  e6 {[%clk 0:03:02]} 4. Nb5 {[%clk 0:02:57]}  Na6 {[%clk 0:03:03]} 5. e3 {[%clk 0:02:57]}  Be7 {[%clk 0:03:03]} 6. Nf3 {[%clk 0:02:57]}  O-O {[%clk 0:03:03]} 7. Ne5 {[%clk 0:02:57]}  c6 {[%clk 0:03:03]} 8. Nc3 {[%clk 0:02:57]}  Nb8 {[%clk 0:03:04]} 9. Bd3 {[%clk 0:02:57]}  c5 {[%clk 0:03:00]} 10. Qf3 {[%clk 0:02:52]}  Nc6 {[%clk 0:02:58]} 11. dxc5 {[%clk 0:02:46]}  Nxe5 {[%clk 0:02:54]} 12. Bxe5 {[%clk 0:02:46]}  Nd7 {[%clk 0:02:55]} 13. Bd6 {[%clk 0:02:32]}  Nxc5 {[%clk 0:02:54]} 14. Bxc5 {[%clk 0:02:30]}  Bxc5 {[%clk 0:02:55]} 15. O-O {[%clk 0:02:29]}  Bd7 {[%clk 0:02:42]} 16. e4 {[%clk 0:02:29]}  d4 {[%clk 0:02:32]} 17. Ne2 {[%clk 0:02:28]}  e5 {[%clk 0:02:32]} 18. Qg3 {[%clk 0:02:14]}  Re8 {[%clk 0:02:26]} 19. f4 {[%clk 0:02:11]}  exf4 {[%clk 0:02:15]} 20. Qxf4 {[%clk 0:01:59]}  Qe7 {[%clk 0:02:01]} 21. e5 {[%clk 0:01:47]}  Bc6 {[%clk 0:01:41]} 22. Ng3 {[%clk 0:01:38]}  Qxe5 {[%clk 0:01:31]} 23. Qxf7+ {[%clk 0:01:36]}  Kh8 {[%clk 0:01:32]} 24. Rf5 {[%clk 0:01:16]}  Qe3+ {[%clk 0:01:23]} 25. Kh1 {[%clk 0:01:08]}  Re5 {[%clk 0:00:23]} 26. Rh5 {[%clk 0:00:51]}  h6 {[%clk 0:00:04]} 27. Qg6 {[%clk 0:00:43]}  Kg8 {[%clk 0:00:05]} 28. Rf1 {[%clk 0:00:36]} 1-0


[Site "https://www.chess.com"]

[Event "Titled Tuesday Blitz May 31 Early 2022"]
[White "Buchenau, Frank"]
[Black "Lucas, Arthur"]
[WhiteFideId "4604350"]
[BlackFideId "26093073"]
[WhiteElo "2157"]
[BlackElo "2129"]
[Result "1-0"]
[Round "03"]
[TimeControl "180+1"]
[Date "2022.06.01"]
[WhiteClock "0:00:14"]
[BlackClock "0:00:02"]

1. e4 {[%clk 0:03:00]}  Nc6 {[%clk 0:02:51]} 2. Nf3 {[%clk 0:03:00]}  d6 {[%clk 0:02:50]} 3. d4 {[%clk 0:03:00]}  Nf6 {[%clk 0:02:50]} 4. Nc3 {[%clk 0:03:00]}  g6 {[%clk 0:02:50]} 5. Bb5 {[%clk 0:02:59]}  a6 {[%clk 0:02:47]} 6. Bxc6+ {[%clk 0:02:58]}  bxc6 {[%clk 0:02:48]} 7. O-O {[%clk 0:02:58]}  Bg7 {[%clk 0:02:48]} 8. h3 {[%clk 0:02:57]}  O-O {[%clk 0:02:49]} 9. Re1 {[%clk 0:02:57]}  e6 {[%clk 0:02:36]} 10. Be3 {[%clk 0:02:56]}  Bb7 {[%clk 0:02:33]} 11. Qd2 {[%clk 0:02:56]}  c5 {[%clk 0:02:28]} 12. d5 {[%clk 0:02:49]}  Re8 {[%clk 0:02:21]} 13. Bg5 {[%clk 0:02:42]}  exd5 {[%clk 0:02:15]} 14. Nxd5 {[%clk 0:02:32]}  Bxd5 {[%clk 0:02:11]} 15. exd5 {[%clk 0:02:32]}  Qd7 {[%clk 0:02:10]} 16. c4 {[%clk 0:02:25]}  Ne4 {[%clk 0:02:01]} 17. Qc2 {[%clk 0:02:23]}  Qf5 {[%clk 0:01:41]} 18. Be3 {[%clk 0:02:11]}  Rab8 {[%clk 0:01:39]} 19. Rab1 {[%clk 0:02:11]}  Ng3 {[%clk 0:01:30]} 20. Qa4 {[%clk 0:01:45]}  Ne2+ {[%clk 0:00:44]} 21. Kf1 {[%clk 0:01:44]}  Qd3 {[%clk 0:00:31]} 22. Rbd1 {[%clk 0:01:27]}  Nc3+ {[%clk 0:00:24]} 23. Rxd3 {[%clk 0:01:23]}  Nxa4 {[%clk 0:00:25]} 24. b3 {[%clk 0:01:21]}  Nc3 {[%clk 0:00:22]} 25. Rd2 {[%clk 0:01:11]}  a5 {[%clk 0:00:23]} 26. Rc2 {[%clk 0:00:56]}  a4 {[%clk 0:00:22]} 27. Nd2 {[%clk 0:00:55]}  axb3 {[%clk 0:00:15]} 28. axb3 {[%clk 0:00:55]}  Ne4 {[%clk 0:00:10]} 29. Nxe4 {[%clk 0:00:50]}  Rxe4 {[%clk 0:00:11]} 30. Rb1 {[%clk 0:00:46]}  f5 {[%clk 0:00:12]} 31. Bd2 {[%clk 0:00:44]}  Rd4 {[%clk 0:00:03]} 32. Bc3 {[%clk 0:00:43]}  Rd3 {[%clk 0:00:03]} 33. Bxg7 {[%clk 0:00:42]}  Kxg7 {[%clk 0:00:04]} 34. Rcb2 {[%clk 0:00:42]}  Rb4 {[%clk 0:00:02]} 35. Ke2 {[%clk 0:00:41]}  Rd4 {[%clk 0:00:02]} 36. Ke3 {[%clk 0:00:29]}  Kf6 {[%clk 0:00:02]} 37. f4 {[%clk 0:00:29]}  Re4+ {[%clk 0:00:02]} 38. Kf3 {[%clk 0:00:30]}  Rd4 {[%clk 0:00:03]} 39. Ke3 {[%clk 0:00:30]}  h6 {[%clk 0:00:03]} 40. h4 {[%clk 0:00:29]}  g5 {[%clk 0:00:04]} 41. hxg5+ {[%clk 0:00:28]}  hxg5 {[%clk 0:00:05]} 42. fxg5+ {[%clk 0:00:27]}  Kxg5 {[%clk 0:00:06]} 43. Kf3 {[%clk 0:00:25]}  Rf4+ {[%clk 0:00:06]} 44. Ke3 {[%clk 0:00:25]}  Re4+ {[%clk 0:00:06]} 45. Kf3 {[%clk 0:00:25]}  Rf4+ {[%clk 0:00:07]} 46. Ke3 {[%clk 0:00:25]}  Rg4 {[%clk 0:00:07]} 47. Kf3 {[%clk 0:00:25]}  f4 {[%clk 0:00:07]} 48. Re1 {[%clk 0:00:21]}  Rg3+ {[%clk 0:00:06]} 49. Kf2 {[%clk 0:00:21]}  Rbxb3 {[%clk 0:00:05]} 50. Rxb3 {[%clk 0:00:21]}  Rxb3 {[%clk 0:00:06]} 51. Re7 {[%clk 0:00:21]}  Rb2+ {[%clk 0:00:04]} 52. Kf3 {[%clk 0:00:21]}  Rb3+ {[%clk 0:00:05]} 53. Kf2 {[%clk 0:00:21]}  Rb7 {[%clk 0:00:02]} 54. Kf3 {[%clk 0:00:20]}  Kf5 {[%clk 0:00:02]} 55. Rf7+ {[%clk 0:00:20]}  Ke5 {[%clk 0:00:03]} 56. Rxf4 {[%clk 0:00:19]}  Rb3+ {[%clk 0:00:02]} 57. Kg4 {[%clk 0:00:19]}  Rb2 {[%clk 0:00:03]} 58. g3 {[%clk 0:00:19]}  Rc2 {[%clk 0:00:02]} 59. Kg5 {[%clk 0:00:18]}  Rg2 {[%clk 0:00:02]} 60. g4 {[%clk 0:00:18]}  Rg1 {[%clk 0:00:02]} 61. Rf7 {[%clk 0:00:18]}  Kd4 {[%clk 0:00:02]} 62. Rxc7 {[%clk 0:00:17]}  Kxc4 {[%clk 0:00:02]} 63. Kf5 {[%clk 0:00:16]}  Kxd5 {[%clk 0:00:02]} 64. g5 {[%clk 0:00:16]}  c4 {[%clk 0:00:02]} 65. g6 {[%clk 0:00:16]}  Rf1+ {[%clk 0:00:02]} 66. Kg5 {[%clk 0:00:16]}  Kd4 {[%clk 0:00:02]} 67. g7 {[%clk 0:00:16]}  d5 {[%clk 0:00:02]} 68. Rc6 {[%clk 0:00:13]}  Rg1+ {[%clk 0:00:02]} 69. Kf6 {[%clk 0:00:13]}  Rxg7 {[%clk 0:00:02]} 70. Kxg7 {[%clk 0:00:13]}  Kd3 {[%clk 0:00:02]} 71. Kf6 {[%clk 0:00:14]}  d4 {[%clk 0:00:02]} 72. Ke5 {[%clk 0:00:14]}  c3 {[%clk 0:00:03]} 73. Rd6 {[%clk 0:00:14]}  c2 {[%clk 0:00:02]} 74. Rxd4+ {[%clk 0:00:15]}  Kc3 {[%clk 0:00:02]} 75. Rd5 {[%clk 0:00:14]} 1-0


[Site "https://www.chess.com"]

[Event "Titled Tuesday Blitz May 31 Early 2022"]
[White "Chigaev, Maksim"]
[Black "Atakhan, Abtin"]
[WhiteFideId "4108116"]
[BlackFideId "22502203"]
[WhiteElo "2457"]
[BlackElo "2094"]
[Result "1-0"]
[Round "03"]
[TimeControl "180+1"]
[Date "2022.05.31"]
[WhiteClock "0:00:06"]
[BlackClock "0:00:03"]

1. d4 {[%clk 0:03:00]}  Nf6 {[%clk 0:02:58]} 2. c4 {[%clk 0:03:00]}  c6 {[%clk 0:02:57]} 3. Nf3 {[%clk 0:02:50]}  d5 {[%clk 0:02:58]} 4. Nbd2 {[%clk 0:02:49]}  Bf5 {[%clk 0:02:45]} 5. Nh4 {[%clk 0:02:45]}  Be4 {[%clk 0:02:41]} 6. e3 {[%clk 0:02:39]}  e6 {[%clk 0:02:37]} 7. Be2 {[%clk 0:02:37]}  h6 {[%clk 0:02:35]} 8. Nxe4 {[%clk 0:02:32]}  dxe4 {[%clk 0:02:23]} 9. g3 {[%clk 0:02:30]}  c5 {[%clk 0:02:21]} 10. O-O {[%clk 0:02:13]}  Nc6 {[%clk 0:02:20]} 11. dxc5 {[%clk 0:02:03]}  Qxd1 {[%clk 0:02:19]} 12. Rxd1 {[%clk 0:02:02]}  Bxc5 {[%clk 0:02:20]} 13. Ng2 {[%clk 0:02:01]}  Ke7 {[%clk 0:02:09]} 14. a3 {[%clk 0:01:50]}  a5 {[%clk 0:02:07]} 15. Bd2 {[%clk 0:01:50]}  Bd6 {[%clk 0:02:00]} 16. Ne1 {[%clk 0:01:41]}  Be5 {[%clk 0:01:57]} 17. Nc2 {[%clk 0:01:40]}  Rhd8 {[%clk 0:01:55]} 18. Rab1 {[%clk 0:01:40]}  a4 {[%clk 0:01:55]} 19. Kf1 {[%clk 0:01:37]}  Nd7 {[%clk 0:01:51]} 20. Bb4+ {[%clk 0:01:17]}  Ke8 {[%clk 0:01:25]} 21. Nd4 {[%clk 0:01:07]}  Nxb4 {[%clk 0:01:13]} 22. axb4 {[%clk 0:01:07]}  Nb8 {[%clk 0:01:12]} 23. c5 {[%clk 0:00:33]}  Ke7 {[%clk 0:01:03]} 24. Bb5 {[%clk 0:00:32]}  Na6 {[%clk 0:00:32]} 25. Bxa6 {[%clk 0:00:27]}  Rxa6 {[%clk 0:00:33]} 26. Ra1 {[%clk 0:00:25]}  Rd5 {[%clk 0:00:25]} 27. Ke2 {[%clk 0:00:24]}  Kd7 {[%clk 0:00:20]} 28. b5 {[%clk 0:00:14]}  Ra5 {[%clk 0:00:18]} 29. b4 {[%clk 0:00:10]}  Ra8 {[%clk 0:00:14]} 30. Ra3 {[%clk 0:00:07]}  Bxd4 {[%clk 0:00:10]} 31. Rxd4 {[%clk 0:00:06]}  Rxd4 {[%clk 0:00:07]} 32. exd4 {[%clk 0:00:07]}  f5 {[%clk 0:00:06]} 33. Kd2 {[%clk 0:00:07]}  g5 {[%clk 0:00:06]} 34. Kc3 {[%clk 0:00:08]}  Kc7 {[%clk 0:00:06]} 35. Kc4 {[%clk 0:00:09]}  h5 {[%clk 0:00:05]} 36. b6+ {[%clk 0:00:09]}  Kd7 {[%clk 0:00:05]} 37. d5 {[%clk 0:00:09]}  e5 {[%clk 0:00:03]} 38. b5 {[%clk 0:00:07]}  f4 {[%clk 0:00:01]} 39. d6 {[%clk 0:00:05]}  Kc8 {[%clk 0:00:02]} 40. c6 {[%clk 0:00:05]}  e3 {[%clk 0:00:01]} 41. fxe3 {[%clk 0:00:05]}  fxe3 {[%clk 0:00:02]} 42. Rxe3 {[%clk 0:00:05]}  a3 {[%clk 0:00:03]} 43. d7+ {[%clk 0:00:05]}  Kd8 {[%clk 0:00:03]} 44. Rxe5 {[%clk 0:00:06]}  Ra4+ {[%clk 0:00:03]} 45. Kc5 {[%clk 0:00:06]} 1-0


[Site "https://www.chess.com"]

[Event "Titled Tuesday Blitz May 31 Early 2022"]
[White "Csonka, Balazs"]
[Black "Sjugirov, Sanan"]
[WhiteFideId "742910"]
[BlackFideId "4189302"]
[WhiteElo "2404"]
[BlackElo "2602"]
[Result "1/2-1/2"]
[Round "03"]
[TimeControl "180+1"]
[Date "2022.05.31"]
[WhiteClock "0:00:02"]
[BlackClock "0:00:08"]

1. d4 {[%clk 0:03:00]}  g6 {[%clk 0:02:59]} 2. c4 {[%clk 0:02:54]}  Bg7 {[%clk 0:02:59]} 3. e4 {[%clk 0:02:55]}  d6 {[%clk 0:02:58]} 4. Nc3 {[%clk 0:02:55]}  c5 {[%clk 0:02:45]} 5. d5 {[%clk 0:02:54]}  Bxc3+ {[%clk 0:02:43]} 6. bxc3 {[%clk 0:02:55]}  e5 {[%clk 0:02:43]} 7. dxe6 {[%clk 0:02:30]}  Bxe6 {[%clk 0:02:37]} 8. Bf4 {[%clk 0:02:29]}  Qf6 {[%clk 0:02:25]} 9. Ne2 {[%clk 0:02:19]}  Bxc4 {[%clk 0:02:01]} 10. Qxd6 {[%clk 0:02:15]}  Nd7 {[%clk 0:01:48]} 11. Qxf6 {[%clk 0:01:24]}  Ngxf6 {[%clk 0:01:49]} 12. f3 {[%clk 0:01:05]}  O-O-O {[%clk 0:01:49]} 13. Be3 {[%clk 0:01:00]}  Ne5 {[%clk 0:01:40]} 14. Nf4 {[%clk 0:00:46]}  b6 {[%clk 0:01:33]} 15. Kf2 {[%clk 0:00:43]}  Bxf1 {[%clk 0:01:29]} 16. Rhxf1 {[%clk 0:00:42]}  Nd3+ {[%clk 0:01:20]} 17. Nxd3 {[%clk 0:00:42]}  Rxd3 {[%clk 0:01:21]} 18. Rac1 {[%clk 0:00:37]}  Kb7 {[%clk 0:01:10]} 19. Ke2 {[%clk 0:00:33]}  Rd7 {[%clk 0:01:08]} 20. Rfd1 {[%clk 0:00:30]}  Kc6 {[%clk 0:01:05]} 21. Bg5 {[%clk 0:00:29]}  Nh5 {[%clk 0:00:27]} 22. Rxd7 {[%clk 0:00:13]}  Kxd7 {[%clk 0:00:28]} 23. g4 {[%clk 0:00:11]}  Ng7 {[%clk 0:00:28]} 24. Rd1+ {[%clk 0:00:08]}  Ke6 {[%clk 0:00:26]} 25. Bf4 {[%clk 0:00:03]}  Rc8 {[%clk 0:00:22]} 26. h4 {[%clk 0:00:02]}  Ne8 {[%clk 0:00:22]} 27. Ke3 {[%clk 0:00:03]}  f6 {[%clk 0:00:19]} 28. h5 {[%clk 0:00:03]}  g5 {[%clk 0:00:19]} 29. Bg3 {[%clk 0:00:03]}  h6 {[%clk 0:00:17]} 30. Rd2 {[%clk 0:00:03]}  b5 {[%clk 0:00:16]} 31. Rd1 {[%clk 0:00:04]}  a5 {[%clk 0:00:16]} 32. a3 {[%clk 0:00:03]}  b4 {[%clk 0:00:12]} 33. axb4 {[%clk 0:00:04]}  cxb4 {[%clk 0:00:12]} 34. cxb4 {[%clk 0:00:05]}  axb4 {[%clk 0:00:12]} 35. Rb1 {[%clk 0:00:05]}  Rc3+ {[%clk 0:00:12]} 36. Ke2 {[%clk 0:00:05]}  b3 {[%clk 0:00:12]} 37. Be1 {[%clk 0:00:06]}  Rc2+ {[%clk 0:00:11]} 38. Kd3 {[%clk 0:00:04]}  Rg2 {[%clk 0:00:07]} 39. Rxb3 {[%clk 0:00:04]}  Nc7 {[%clk 0:00:07]} 40. Rb6+ {[%clk 0:00:04]}  Kd7 {[%clk 0:00:07]} 41. Rxf6 {[%clk 0:00:03]}  Ne6 {[%clk 0:00:08]} 42. Rxh6 {[%clk 0:00:03]}  Nf4+ {[%clk 0:00:08]} 43. Kd4 {[%clk 0:00:04]}  Re2 {[%clk 0:00:08]} 44. Bb4 {[%clk 0:00:03]}  Rf2 {[%clk 0:00:07]} 45. Rd6+ {[%clk 0:00:03]}  Ke8 {[%clk 0:00:07]} 46. h6 {[%clk 0:00:02]}  Rxf3 {[%clk 0:00:08]} 47. h7 {[%clk 0:00:02]}  Rh3 {[%clk 0:00:08]} 48. Ra6 {[%clk 0:00:01]}  Rxh7 {[%clk 0:00:07]} 49. Ra8+ {[%clk 0:00:02]}  Kf7 {[%clk 0:00:08]} 50. Ra7+ {[%clk 0:00:03]}  Kg6 {[%clk 0:00:08]} 51. Rxh7 {[%clk 0:00:03]}  Kxh7 {[%clk 0:00:09]} 52. Ke5 {[%clk 0:00:03]}  Kg6 {[%clk 0:00:09]} 53. Bd2 {[%clk 0:00:03]}  Nd3+ {[%clk 0:00:08]} 54. Kd6 {[%clk 0:00:03]}  Nf2 {[%clk 0:00:09]} 55. Kd5 {[%clk 0:00:02]}  Nxg4 {[%clk 0:00:09]} 56. e5 {[%clk 0:00:03]}  Kf5 {[%clk 0:00:08]} 57. Bxg5 {[%clk 0:00:02]}  Nxe5 {[%clk 0:00:08]} 1/2-1/2


[Site "https://www.chess.com"]

[Event "Titled Tuesday Blitz May 31 Early 2022"]
[White "Daneshvar, Bardiya"]
[Black "Girsh, Daniel"]
[WhiteFideId "12576468"]
[BlackFideId "30949190"]
[WhiteElo "2330"]
[BlackElo "2449"]
[Result "1/2-1/2"]
[Round "03"]
[TimeControl "180+1"]
[Date "2022.05.31"]
[WhiteClock "0:01:02"]
[BlackClock "0:00:15"]

1. b3 {[%clk 0:03:00]}  e5 {[%clk 0:02:59]} 2. Bb2 {[%clk 0:03:00]}  Nc6 {[%clk 0:02:59]} 3. c4 {[%clk 0:03:00]}  Nf6 {[%clk 0:02:59]} 4. Nf3 {[%clk 0:02:58]}  e4 {[%clk 0:02:58]} 5. Nd4 {[%clk 0:02:58]}  Bc5 {[%clk 0:02:58]} 6. Nf5 {[%clk 0:02:56]}  O-O {[%clk 0:02:58]} 7. Nc3 {[%clk 0:02:47]}  d5 {[%clk 0:02:56]} 8. cxd5 {[%clk 0:02:39]}  Bxf5 {[%clk 0:02:48]} 9. dxc6 {[%clk 0:02:39]}  bxc6 {[%clk 0:02:19]} 10. e3 {[%clk 0:02:38]}  Qe7 {[%clk 0:02:14]} 11. Na4 {[%clk 0:02:33]}  Bb4 {[%clk 0:02:11]} 12. a3 {[%clk 0:02:30]}  Bd6 {[%clk 0:02:11]} 13. Qc2 {[%clk 0:02:29]}  Ng4 {[%clk 0:02:08]} 14. Be2 {[%clk 0:02:18]}  Qh4 {[%clk 0:02:06]} 15. g3 {[%clk 0:02:17]}  Qh3 {[%clk 0:02:05]} 16. Bf1 {[%clk 0:02:16]}  Qh6 {[%clk 0:02:00]} 17. h3 {[%clk 0:02:11]}  Ne5 {[%clk 0:01:56]} 18. Bxe5 {[%clk 0:02:08]}  Bxe5 {[%clk 0:01:55]} 19. Rc1 {[%clk 0:02:09]}  Rad8 {[%clk 0:01:46]} 20. Bg2 {[%clk 0:01:58]}  Qg6 {[%clk 0:01:37]} 21. O-O {[%clk 0:01:47]}  h5 {[%clk 0:01:30]} 22. Nc5 {[%clk 0:01:46]}  h4 {[%clk 0:01:17]} 23. g4 {[%clk 0:01:45]}  Bxg4 {[%clk 0:01:01]} 24. hxg4 {[%clk 0:01:44]}  Qxg4 {[%clk 0:01:02]} 25. Qxe4 {[%clk 0:01:42]}  Qh5 {[%clk 0:00:59]} 26. d4 {[%clk 0:01:35]}  h3 {[%clk 0:00:45]} 27. Qxe5 {[%clk 0:01:33]}  Qg6 {[%clk 0:00:35]} 28. Qg3 {[%clk 0:01:31]}  hxg2 {[%clk 0:00:35]} 29. Kxg2 {[%clk 0:01:30]}  Qf5 {[%clk 0:00:30]} 30. Rh1 {[%clk 0:01:30]}  Rd6 {[%clk 0:00:30]} 31. Qf4 {[%clk 0:01:20]}  Rg6+ {[%clk 0:00:29]} 32. Kf1 {[%clk 0:01:20]}  Qc8 {[%clk 0:00:23]} 33. Ke2 {[%clk 0:01:17]}  f6 {[%clk 0:00:20]} 34. Rcg1 {[%clk 0:01:15]}  Rxg1 {[%clk 0:00:20]} 35. Rxg1 {[%clk 0:01:16]}  Qb8 {[%clk 0:00:20]} 36. Qg4 {[%clk 0:01:15]}  Rf7 {[%clk 0:00:20]} 37. Qe6 {[%clk 0:01:14]}  Qb5+ {[%clk 0:00:19]} 38. Qc4 {[%clk 0:01:14]}  Qa5 {[%clk 0:00:19]} 39. a4 {[%clk 0:01:14]}  Kf8 {[%clk 0:00:17]} 40. Rh1 {[%clk 0:01:10]}  Kg8 {[%clk 0:00:15]} 41. Nd7 {[%clk 0:01:08]}  Qf5 {[%clk 0:00:14]} 42. Rh8+ {[%clk 0:01:05]}  Kxh8 {[%clk 0:00:14]} 43. Qxf7 {[%clk 0:01:06]}  Qc2+ {[%clk 0:00:14]} 44. Kf3 {[%clk 0:01:06]}  Qf5+ {[%clk 0:00:14]} 45. Kg3 {[%clk 0:01:05]}  Qg5+ {[%clk 0:00:14]} 46. Kh3 {[%clk 0:01:05]}  Qf5+ {[%clk 0:00:13]} 47. Kg3 {[%clk 0:00:59]}  Qg5+ {[%clk 0:00:13]} 48. Kf3 {[%clk 0:00:59]}  Qf5+ {[%clk 0:00:14]} 49. Ke2 {[%clk 0:01:00]}  Qc2+ {[%clk 0:00:14]} 50. Kf1 {[%clk 0:01:01]}  Qd1+ {[%clk 0:00:14]} 51. Kg2 {[%clk 0:01:02]}  Qg4+ {[%clk 0:00:15]} 52. Kh2 {[%clk 0:01:02]}  Qh4+ {[%clk 0:00:15]} 53. Kg1 {[%clk 0:01:03]}  Qg4+ {[%clk 0:00:15]} 54. Kh1 {[%clk 0:01:03]}  Qh4+ {[%clk 0:00:16]} 55. Kg2 {[%clk 0:01:03]}  Qg4+ {[%clk 0:00:15]} 56. Kf1 {[%clk 0:01:01]}  Qd1+ {[%clk 0:00:15]} 57. Kg2 {[%clk 0:01:02]}  Qg4+ {[%clk 0:00:15]} 1/2-1/2


[Site "https://www.chess.com"]

[Event "Titled Tuesday Blitz May 31 Early 2022"]
[White "Gallo Garcia, Kemel Antonio"]
[Black "Salinas Herrera, Pablo"]
[WhiteFideId "3523896"]
[BlackFideId "3407128"]
[WhiteElo "2359"]
[BlackElo "2541"]
[Result "1-0"]
[Round "03"]
[TimeControl "180+1"]
[Date "2022.06.01"]
[WhiteClock "0:00:07"]
[BlackClock "0:00:06"]

1. e4 {[%clk 0:03:00]}  c5 {[%clk 0:02:59]} 2. Nf3 {[%clk 0:03:00]}  e6 {[%clk 0:02:59]} 3. d4 {[%clk 0:02:56]}  cxd4 {[%clk 0:03:00]} 4. Bg5 {[%clk 0:02:56]}  f6 {[%clk 0:02:57]} 5. Bf4 {[%clk 0:02:52]}  Nc6 {[%clk 0:02:53]} 6. Nbd2 {[%clk 0:02:50]}  a6 {[%clk 0:02:42]} 7. Be2 {[%clk 0:02:40]}  Nge7 {[%clk 0:02:39]} 8. O-O {[%clk 0:02:40]}  Ng6 {[%clk 0:02:39]} 9. Bg3 {[%clk 0:02:40]}  d5 {[%clk 0:02:06]} 10. exd5 {[%clk 0:02:26]}  Qxd5 {[%clk 0:02:07]} 11. Nb3 {[%clk 0:02:19]}  e5 {[%clk 0:02:05]} 12. c3 {[%clk 0:02:19]}  Be7 {[%clk 0:01:29]} 13. Rc1 {[%clk 0:02:02]}  d3 {[%clk 0:01:10]} 14. Qxd3 {[%clk 0:01:47]}  Qxd3 {[%clk 0:01:10]} 15. Bxd3 {[%clk 0:01:48]}  Be6 {[%clk 0:01:11]} 16. Rfe1 {[%clk 0:01:37]}  Kf7 {[%clk 0:01:08]} 17. Rcd1 {[%clk 0:01:28]}  Rad8 {[%clk 0:01:08]} 18. Be4 {[%clk 0:01:27]}  h5 {[%clk 0:00:59]} 19. h4 {[%clk 0:01:24]}  Rxd1 {[%clk 0:00:30]} 20. Rxd1 {[%clk 0:01:23]}  Rd8 {[%clk 0:00:31]} 21. Rxd8 {[%clk 0:01:19]}  Nxd8 {[%clk 0:00:32]} 22. Bc2 {[%clk 0:00:47]}  Nc6 {[%clk 0:00:27]} 23. Kf1 {[%clk 0:00:35]}  f5 {[%clk 0:00:15]} 24. Ng5+ {[%clk 0:00:35]}  Bxg5 {[%clk 0:00:15]} 25. hxg5 {[%clk 0:00:36]}  f4 {[%clk 0:00:12]} 26. Bh2 {[%clk 0:00:28]}  Nge7 {[%clk 0:00:12]} 27. Nc5 {[%clk 0:00:27]}  Bc8 {[%clk 0:00:12]} 28. g3 {[%clk 0:00:25]}  f3 {[%clk 0:00:11]} 29. Be4 {[%clk 0:00:24]}  b6 {[%clk 0:00:10]} 30. Nd3 {[%clk 0:00:21]}  Bg4 {[%clk 0:00:11]} 31. Ne1 {[%clk 0:00:20]}  Nd8 {[%clk 0:00:10]} 32. Nxf3 {[%clk 0:00:17]}  Ke6 {[%clk 0:00:11]} 33. Nd2 {[%clk 0:00:12]}  Nf7 {[%clk 0:00:11]} 34. f4 {[%clk 0:00:12]}  Bf5 {[%clk 0:00:09]} 35. Bb7 {[%clk 0:00:11]}  a5 {[%clk 0:00:09]} 36. Nc4 {[%clk 0:00:10]}  Bd3+ {[%clk 0:00:09]} 37. Kf2 {[%clk 0:00:08]}  Bxc4 {[%clk 0:00:10]} 38. b3 {[%clk 0:00:07]}  Bd5 {[%clk 0:00:10]} 39. Ba6 {[%clk 0:00:08]}  Nf5 {[%clk 0:00:08]} 40. Bc8+ {[%clk 0:00:06]}  Kd6 {[%clk 0:00:08]} 41. Bxf5 {[%clk 0:00:07]}  Be6 {[%clk 0:00:04]} 42. Bg6 {[%clk 0:00:05]}  Nd8 {[%clk 0:00:03]} 43. Bxh5 {[%clk 0:00:04]}  Nc6 {[%clk 0:00:03]} 44. Bf3 {[%clk 0:00:04]}  Bd5 {[%clk 0:00:03]} 45. Bxd5 {[%clk 0:00:03]}  Kxd5 {[%clk 0:00:03]} 46. Ke3 {[%clk 0:00:04]}  e4 {[%clk 0:00:03]} 47. c4+ {[%clk 0:00:04]}  Ke6 {[%clk 0:00:03]} 48. Kxe4 {[%clk 0:00:05]}  Nb4 {[%clk 0:00:03]} 49. a3 {[%clk 0:00:05]}  Nc2 {[%clk 0:00:04]} 50. Bg1 {[%clk 0:00:06]}  Nxa3 {[%clk 0:00:04]} 51. Bxb6 {[%clk 0:00:06]}  a4 {[%clk 0:00:05]} 52. bxa4 {[%clk 0:00:06]}  Nxc4 {[%clk 0:00:05]} 53. a5 {[%clk 0:00:07]}  Nd6+ {[%clk 0:00:05]} 54. Kf3 {[%clk 0:00:06]}  Kd5 {[%clk 0:00:06]} 55. a6 {[%clk 0:00:06]}  Kc6 {[%clk 0:00:06]} 56. a7 {[%clk 0:00:06]}  Kb7 {[%clk 0:00:06]} 57. Bd4 {[%clk 0:00:06]}  Nf5 {[%clk 0:00:07]} 58. Bf2 {[%clk 0:00:05]}  g6 {[%clk 0:00:07]} 59. g4 {[%clk 0:00:06]}  Ne7 {[%clk 0:00:08]} 60. Ke4 {[%clk 0:00:06]}  Nc8 {[%clk 0:00:07]} 61. f5 {[%clk 0:00:07]}  Nd6+ {[%clk 0:00:07]} 62. Ke5 {[%clk 0:00:06]}  Nc4+ {[%clk 0:00:07]} 63. Kf6 {[%clk 0:00:06]}  Nd6 {[%clk 0:00:07]} 64. Kxg6 {[%clk 0:00:05]}  Ne4 {[%clk 0:00:07]} 65. Bd4 {[%clk 0:00:05]}  Nd6 {[%clk 0:00:07]} 66. f6 {[%clk 0:00:06]}  Nc8 {[%clk 0:00:06]} 67. Bc5 {[%clk 0:00:06]}  Kc6 {[%clk 0:00:06]} 68. f7 {[%clk 0:00:06]}  Kxc5 {[%clk 0:00:06]} 69. f8=Q+ {[%clk 0:00:07]} 1-0


[Site "https://www.chess.com"]